Department Family,Entity,Date,Expense Type,Expense Area,Supplier,SME,Transaction Number,Amount,Description,Expenditure Type
HM Land Registry,HM Land Registry,30/04/2018,Software as a Service (Cloud),IS Service Delivery,Anaplan Limited,Large,1213399,"123,914.30",Cloud Computing Services,Administration
HM Land Registry,HM Land Registry,04/04/2018,Computer Equipment Maintenance,IS Service Delivery,ANS Group Limited,Large,1210479,"37,943.76",Computer Equipment Maintenance,Administration
HM Land Registry,HM Land Registry,12/04/2018,Stationery National Contracts,Birkenhead Office,Banner Group Limited,Large,1211845,"2,124.66",Stationery,Administration
HM Land Registry,HM Land Registry,12/04/2018,Stationery National Contracts,Central Operations Group,Banner Group Limited,Large,1211845,162.60,Stationery,Administration
HM Land Registry,HM Land Registry,12/04/2018,Stationery National Contracts,Chief Executives Office,Banner Group Limited,Large,1211845,50.59,Stationery,Administration
HM Land Registry,HM Land Registry,12/04/2018,Stationery National Contracts,Coventry Office,Banner Group Limited,Large,1211845,488.88,Stationery,Administration
HM Land Registry,HM Land Registry,12/04/2018,Stationery National Contracts,Croydon Office,Banner Group Limited,Large,1211845,808.82,Stationery,Administration
HM Land Registry,HM Land Registry,12/04/2018,Stationery National Contracts,Director of Information Systems,Banner Group Limited,Large,1211845,625.87,Stationery,Administration
HM Land Registry,HM Land Registry,12/04/2018,Stationery National Contracts,Durham Office,Banner Group Limited,Large,1211845,"2,349.01",Stationery,Administration
HM Land Registry,HM Land Registry,12/04/2018,Stationery National Contracts,Finance Group,Banner Group Limited,Large,1211845,24.48,Stationery,Administration
HM Land Registry,HM Land Registry,12/04/2018,Stationery National Contracts,Fylde Office,Banner Group Limited,Large,1211845,"1,594.90",Stationery,Administration
HM Land Registry,HM Land Registry,12/04/2018,Stationery National Contracts,Gloucester Office,Banner Group Limited,Large,1211845,"1,307.02",Stationery,Administration
HM Land Registry,HM Land Registry,12/04/2018,Stationery National Contracts,Hull Office,Banner Group Limited,Large,1211845,928.12,Stationery,Administration
HM Land Registry,HM Land Registry,12/04/2018,Stationery National Contracts,IS Service Delivery,Banner Group Limited,Large,1211845,"6,586.45",Stationery,Administration
HM Land Registry,HM Land Registry,12/04/2018,Stationery National Contracts,Land Charges,Banner Group Limited,Large,1211845,349.98,Stationery,Administration
HM Land Registry,HM Land Registry,12/04/2018,Stationery National Contracts,Leicester Office,Banner Group Limited,Large,1211845,325.06,Stationery,Administration
HM Land Registry,HM Land Registry,12/04/2018,Stationery National Contracts,Local Land Charges,Banner Group Limited,Large,1211845,71.78,Stationery,Administration
HM Land Registry,HM Land Registry,12/04/2018,Stationery National Contracts,Marketing Services Team,Banner Group Limited,Large,1211845,101.34,Stationery,Administration
HM Land Registry,HM Land Registry,12/04/2018,Stationery National Contracts,Nottingham Office,Banner Group Limited,Large,1211845,"1,148.66",Stationery,Administration
HM Land Registry,HM Land Registry,12/04/2018,Stationery National Contracts,Peterborough Office,Banner Group Limited,Large,1211845,741.37,Stationery,Administration
HM Land Registry,HM Land Registry,12/04/2018,Stationery National Contracts,Plymouth Office,Banner Group Limited,Large,1211845,"1,407.56",Stationery,Administration
HM Land Registry,HM Land Registry,12/04/2018,Stationery National Contracts,Projects and Programme Centre,Banner Group Limited,Large,1211845,169.79,Stationery,Administration
HM Land Registry,HM Land Registry,12/04/2018,Stationery National Contracts,Telford Office,Banner Group Limited,Large,1211845,495.97,Stationery,Administration
HM Land Registry,HM Land Registry,12/04/2018,Stationery National Contracts,Wales Office,Banner Group Limited,Large,1211845,"3,549.59",Stationery,Administration
HM Land Registry,HM Land Registry,12/04/2018,Stationery National Contracts,Weymouth Office,Banner Group Limited,Large,1211845,583.20,Stationery,Administration
HM Land Registry,HM Land Registry,12/04/2018,Stationery National Contracts,Organisation & Employee Development,Banner Group Limited,Large,1211845,23.08,Stationery,Administration
HM Land Registry,HM Land Registry,06/04/2018,"FF&F:Purchases <1,000",Central Facilities Management Team,Broadstock Office Furniture Ltd,SME,1210929,"31,282.80","Furniture, Fixtures & Fittings: Purchases less than 1,000.00",Administration
HM Land Registry,HM Land Registry,06/04/2018,Computer Equipment Consumables,IS Service Delivery,Canon (UK) Ltd,Large,1210804,"-30,506.58",Computer Equipment Consumables,Administration
HM Land Registry,HM Land Registry,06/04/2018,Computer Equipment Consumables,IS Service Delivery,Canon (UK) Ltd,Large,1210676,"30,578.83",Computer Equipment Consumables,Administration
HM Land Registry,HM Land Registry,23/04/2018,Computer Equipment Consumables,IS Service Delivery,Canon (UK) Ltd,Large,1210803,"27,813.26",Computer Equipment Consumables,Administration
HM Land Registry,HM Land Registry,23/04/2018,Computer Equipment Consumables,IS Service Delivery,Canon (UK) Ltd,Large,1210677,"28,314.82",Computer Equipment Consumables,Administration
HM Land Registry,HM Land Registry,06/04/2018,Computer Equipment Maintenance,IS Service Delivery,CGI IT UK Limited,Large,1211271,"60,014.77",Computer Equipment Maintenance,Administration
HM Land Registry,HM Land Registry,19/04/2018,Software as a Service (Cloud),Dir: Finance,CGI IT UK Limited,Large,1212187,"85,179.80",Cloud Computing Services,Administration
HM Land Registry,HM Land Registry,26/04/2018,Rates Payable,Wales Office,City & County of Swansea,Large,1209129,"23,259.00",Rates Payable,Administration
HM Land Registry,HM Land Registry,10/04/2018,Rent Payable,Peterborough Office,Commercial Estates Group Ltd,SME,1209347,"11,489.40",Rent Payable,Administration
HM Land Registry,HM Land Registry,04/04/2018,Rates Payable,Croydon Office,Croydon Council,Large,1209135,"41,553.00",Rates Payable,Administration
HM Land Registry,HM Land Registry,30/04/2018,Rates Payable,Croydon Office,Croydon Council,Large,1209135,"41,553.00",Rates Payable,Administration
HM Land Registry,HM Land Registry,11/04/2018,Professional Services,Dir: (Statutory) Digital Services,Datrix Ltd,SME,1207453,"25,200.00",Professional Services,Administration
HM Land Registry,HM Land Registry,11/04/2018,Computer Equipment Non HP Licences,Dir: (Statutory) Digital Services,Datrix Ltd,SME,1207453,"18,104.77",Computer Equipment Non HP Licences,Administration
HM Land Registry,HM Land Registry,16/04/2018,Professional Services,Dir: Information Systems,Deloitte MCS Ltd,Large,1211967,"175,415.86",Professional Services,Administration
HM Land Registry,HM Land Registry,26/04/2018,Rates Payable,Durham Office,Durham County Council,Large,1208028,"28,594.00",Rates Payable,Administration
HM Land Registry,HM Land Registry,05/04/2018,Hays Document Exchange (DX),Central Facilities Management Team,DX Network Services Ltd,Large,1212196,"127,732.86",Hays Document Exchange,Administration
HM Land Registry,HM Land Registry,06/04/2018,Computer Equipment Non HP Licences,IS Service Delivery,Experian Ltd,Large,1211275,"69,660.00",Computer Equipment Non HP Licences,Administration
HM Land Registry,HM Land Registry,05/04/2018,Fixed Asset Interface Account,Balance Sheet,FES Support Services Ltd,SME,1210766,"575,760.67",Fixed Assets,Administration
HM Land Registry,HM Land Registry,26/04/2018,Rates Payable,Fylde Office,Fylde Borough Council,Large,1208025,"17,625.00",Rates Payable,Administration
HM Land Registry,HM Land Registry,26/04/2018,Rates Payable,Gloucester Office,Gloucester City Council,Large,1209131,"29,827.00",Rates Payable,Administration
HM Land Registry,HM Land Registry,04/04/2018,Independent Adjudicators's Office Costs,Independent Adjudicator,HM Courts & Tribunals Service,Large,1210539,"732,500.00",Independent Adjudicators's Office Costs,Administration
HM Land Registry,HM Land Registry,10/04/2018,Software as a Service (Cloud),IS Service Delivery,Hootsuite Inc,Large,1211114,"35,432.00",Cloud Computing Services,Administration
HM Land Registry,HM Land Registry,23/04/2018,Computer Equipment Maintenance,IS Service Delivery,IBM United Kingdom Ltd,Large,1212438,"1,041,002.64",Computer Equipment Maintenance,Administration
HM Land Registry,HM Land Registry,23/04/2018,Computer Equipment Hire,IS Service Delivery,IBM United Kingdom Ltd,Large,1212438,"4,740,664.42",Computer Equipment Hire,Administration
HM Land Registry,HM Land Registry,06/04/2018,Professional Subscriptions,Dir: Operations,Institute of Customer Service,SME,1211247,"60,000.00",Professional Subscriptions,Administration
HM Land Registry,HM Land Registry,06/04/2018,Employment Agency Staff Costs,Dir: Information Systems,Kainos Software Ltd,Large,1210930,"28,512.00",Employment Agency Staff Costs,Administration
HM Land Registry,HM Land Registry,06/04/2018,Professional Services,Program: Local Land Charges,Kainos Software Ltd,Large,1211273,"387,669.77",Professional Services,Administration
HM Land Registry,HM Land Registry,09/04/2018,Professional Services,Dir: (Statutory) Digital Services,Kainos Software Ltd,Large,1211366,"207,834.80",Professional Services,Administration
HM Land Registry,HM Land Registry,10/04/2018,Rates Payable,Hull Office,Kingston Upon Hull City Council,Large,1209133,"14,790.00",Rates Payable,Administration
HM Land Registry,HM Land Registry,26/04/2018,Rates Payable,Leicester Office,Leicester City Council,Large,1208569,"22,062.00",Rates Payable,Administration
HM Land Registry,HM Land Registry,24/04/2018,Computer Equipment Maintenance,IS Service Delivery,Marval Software Ltd,Large,1212991,"118,758.00",Computer Equipment Maintenance,Administration
HM Land Registry,HM Land Registry,09/04/2018,Data Network Lines,IS Service Delivery,MLL Telecom Ltd,Large,1210933,"63,112.51",Data Network Lines,Administration
HM Land Registry,HM Land Registry,19/04/2018,Fixed Asset Interface Account,Balance Sheet,MLL Telecom Ltd,Large,1210894,"23,332.80",Fixed Assets,Administration
HM Land Registry,HM Land Registry,19/04/2018,Computer Equipment Maintenance,IS Service Delivery,MLL Telecom Ltd,Large,1210894,"1,321.00",Computer Equipment Maintenance,Administration
HM Land Registry,HM Land Registry,19/04/2018,Telephone Costs,IS Service Delivery,MLL Telecom Ltd,Large,1210894,"1,572.00",Telephone Costs,Administration
HM Land Registry,HM Land Registry,26/04/2018,Rates Payable,Nottingham Office,Nottingham City Council,Large,1209145,"25,883.00",Rates Payable,Administration
HM Land Registry,HM Land Registry,20/04/2018,Professional Services,Dir: Information Systems,Ordnance Survey,Large,1211968,"42,770.52",Professional Services,Administration
HM Land Registry,HM Land Registry,27/04/2018,Ordnance Survey Surveys,Central Operations Group,Ordnance Survey,Large,1213268,"954,351.00",Ordnance Survey Surveys,Administration
HM Land Registry,HM Land Registry,19/04/2018,Professional Services,Program: Local Land Charges,PA Consulting Services Ltd,Large,1211744,"229,216.80",Professional Services,Administration
HM Land Registry,HM Land Registry,26/04/2018,FF&F:Hire (Central Print Only),IS Service Delivery,Pitney Bowes Finance Ltd,Large,1212579,"39,420.00","Furniture, Fixtures & Fittings: Hire (Central Print Only)",Administration
HM Land Registry,HM Land Registry,26/04/2018,FF&F:Hire (Central Print Only),IS Service Delivery,Pitney Bowes Finance Ltd,Large,1212581,"39,420.00","Furniture, Fixtures & Fittings: Hire (Central Print Only)",Administration
HM Land Registry,HM Land Registry,26/04/2018,FF&F:Hire (Central Print Only),IS Service Delivery,Pitney Bowes Finance Ltd,Large,1208312,"23,469.28","Furniture, Fixtures & Fittings: Hire (Central Print Only)",Administration
HM Land Registry,HM Land Registry,26/04/2018,FF&F:Hire (Central Print Only),IS Service Delivery,Pitney Bowes Finance Ltd,Large,1212580,"23,469.29","Furniture, Fixtures & Fittings: Hire (Central Print Only)",Administration
HM Land Registry,HM Land Registry,26/04/2018,FF&F:Hire (Central Print Only),IS Service Delivery,Pitney Bowes Finance Ltd,Large,1212582,"-26,370.00","Furniture, Fixtures & Fittings: Hire (Central Print Only)",Administration
HM Land Registry,HM Land Registry,26/04/2018,FF&F:Hire (Central Print Only),IS Service Delivery,Pitney Bowes Finance Ltd,Large,1212583,"-26,370.00","Furniture, Fixtures & Fittings: Hire (Central Print Only)",Administration
HM Land Registry,HM Land Registry,26/04/2018,Rates Payable,Plymouth Office,Plymouth City Council,Large,1210538,"35,451.32",Rates Payable,Administration
HM Land Registry,HM Land Registry,09/04/2018,Major Property Maintenance Projects,Central Facilities Management Team,Prater Ltd,SME,1211364,"56,743.47",Major Property Maintenance Projects,Administration
HM Land Registry,HM Land Registry,10/04/2018,Assets in the Course of Construction,Balance Sheet,Redfern Travel Ltd,SME,1211665,181.20,Assets in the Course of Construction,Administration
HM Land Registry,HM Land Registry,10/04/2018,Travel & Subsistence General Duty,Birkenhead Office,Redfern Travel Ltd,SME,1211665,170.60,Travel & Subsistence,Administration
HM Land Registry,HM Land Registry,10/04/2018,Travel & Subsistence General Duty,Business Development,Redfern Travel Ltd,SME,1211665,"1,377.75",Travel & Subsistence,Administration
HM Land Registry,HM Land Registry,10/04/2018,Travel & Subsistence General Duty,Central Facilities Management Team,Redfern Travel Ltd,SME,1211665,"1,934.68",Travel & Subsistence,Administration
HM Land Registry,HM Land Registry,10/04/2018,Travel & Subsistence General Duty,Central Operations Group,Redfern Travel Ltd,SME,1211665,587.29,Travel & Subsistence,Administration
HM Land Registry,HM Land Registry,10/04/2018,Travel & Subsistence General Duty,Chief Executives Office,Redfern Travel Ltd,SME,1211665,315.40,Travel & Subsistence,Administration
HM Land Registry,HM Land Registry,10/04/2018,Travel & Subsistence General Duty,Commercial Director,Redfern Travel Ltd,SME,1211665,258.56,Travel & Subsistence,Administration
HM Land Registry,HM Land Registry,10/04/2018,Travel & Subsistence General Duty,Corp Procurement,Redfern Travel Ltd,SME,1211665,133.00,Travel & Subsistence,Administration
HM Land Registry,HM Land Registry,10/04/2018,Travel & Subsistence General Duty,Corporate Legal Services,Redfern Travel Ltd,SME,1211665,"1,061.85",Travel & Subsistence,Administration
HM Land Registry,HM Land Registry,10/04/2018,Travel & Subsistence General Duty,Croydon Office,Redfern Travel Ltd,SME,1211665,"1,082.30",Travel & Subsistence,Administration
HM Land Registry,HM Land Registry,10/04/2018,Travel & Subsistence General Duty,Data Group,Redfern Travel Ltd,SME,1211665,"1,040.50",Travel & Subsistence,Administration
HM Land Registry,HM Land Registry,10/04/2018,Travel & Subsistence General Duty,Dir: (Statutory) Digital Services,Redfern Travel Ltd,SME,1211665,"4,970.37",Travel & Subsistence,Administration
HM Land Registry,HM Land Registry,10/04/2018,Travel & Subsistence General Duty,Dir: Operations,Redfern Travel Ltd,SME,1211665,"1,280.10",Travel & Subsistence,Administration
HM Land Registry,HM Land Registry,10/04/2018,Travel & Subsistence General Duty,Director of Information Systems,Redfern Travel Ltd,SME,1211665,"1,592.40",Travel & Subsistence,Administration
HM Land Registry,HM Land Registry,10/04/2018,Travel & Subsistence General Duty,Director of Legal Services,Redfern Travel Ltd,SME,1211665,79.60,Travel & Subsistence,Administration
HM Land Registry,HM Land Registry,10/04/2018,Travel & Subsistence General Duty,Director of Operations,Redfern Travel Ltd,SME,1211665,85.20,Travel & Subsistence,Administration
HM Land Registry,HM Land Registry,10/04/2018,Travel & Subsistence General Duty,Durham Office,Redfern Travel Ltd,SME,1211665,394.00,Travel & Subsistence,Administration
HM Land Registry,HM Land Registry,10/04/2018,Travel & Subsistence General Duty,Finance Group,Redfern Travel Ltd,SME,1211665,138.90,Travel & Subsistence,Administration
HM Land Registry,HM Land Registry,10/04/2018,Travel & Subsistence General Duty,HR Group,Redfern Travel Ltd,SME,1211665,"1,576.08",Travel & Subsistence,Administration
HM Land Registry,HM Land Registry,10/04/2018,Travel & Subsistence General Duty,Hull Office,Redfern Travel Ltd,SME,1211665,242.30,Travel & Subsistence,Administration
HM Land Registry,HM Land Registry,10/04/2018,Travel & Subsistence General Duty,Local Land Charges,Redfern Travel Ltd,SME,1211665,"1,405.35",Travel & Subsistence,Administration
HM Land Registry,HM Land Registry,10/04/2018,Travel & Subsistence General Duty,Local Lawyer Group,Redfern Travel Ltd,SME,1211665,638.50,Travel & Subsistence,Administration
HM Land Registry,HM Land Registry,10/04/2018,Travel & Subsistence General Duty,Marketing Services Team,Redfern Travel Ltd,SME,1211665,525.30,Travel & Subsistence,Administration
HM Land Registry,HM Land Registry,10/04/2018,Travel & Subsistence General Duty,Nottingham Office,Redfern Travel Ltd,SME,1211665,-7.60,Travel & Subsistence,Administration
HM Land Registry,HM Land Registry,10/04/2018,Travel & Subsistence General Duty,Peterborough Office,Redfern Travel Ltd,SME,1211665,55.00,Travel & Subsistence,Administration
HM Land Registry,HM Land Registry,10/04/2018,Travel & Subsistence General Duty,Product Development & Management,Redfern Travel Ltd,SME,1211665,110.26,Travel & Subsistence,Administration
HM Land Registry,HM Land Registry,10/04/2018,Travel & Subsistence General Duty,Program: Local Land Charges,Redfern Travel Ltd,SME,1211665,"1,517.20",Travel & Subsistence,Administration
HM Land Registry,HM Land Registry,10/04/2018,Travel & Subsistence General Duty,Projects and Programme Centre,Redfern Travel Ltd,SME,1211665,94.29,Travel & Subsistence,Administration
HM Land Registry,HM Land Registry,10/04/2018,Travel & Subsistence General Duty,Property Asset Management Group,Redfern Travel Ltd,SME,1211665,85.50,Travel & Subsistence,Administration
HM Land Registry,HM Land Registry,10/04/2018,Travel & Subsistence General Duty,Research & Data Mining,Redfern Travel Ltd,SME,1211665,228.99,Travel & Subsistence,Administration
HM Land Registry,HM Land Registry,10/04/2018,Travel & Subsistence General Duty,Strategy Team,Redfern Travel Ltd,SME,1211665,85.60,Travel & Subsistence,Administration
HM Land Registry,HM Land Registry,10/04/2018,Travel & Subsistence General Duty,Telford Office,Redfern Travel Ltd,SME,1211665,162.70,Travel & Subsistence,Administration
HM Land Registry,HM Land Registry,10/04/2018,Travel & Subsistence General Duty,Wales Office,Redfern Travel Ltd,SME,1211665,339.20,Travel & Subsistence,Administration
HM Land Registry,HM Land Registry,10/04/2018,Travel & Subsistence General Duty,Weymouth Office,Redfern Travel Ltd,SME,1211665,43.50,Travel & Subsistence,Administration
HM Land Registry,HM Land Registry,10/04/2018,Travel & Subsistence General Duty,Dir: Finance,Redfern Travel Ltd,SME,1211665,"1,022.50",Travel & Subsistence,Administration
HM Land Registry,HM Land Registry,10/04/2018,Travel & Subsistence General Duty,Internal Audit,Redfern Travel Ltd,SME,1211665,400.10,Travel & Subsistence,Administration
HM Land Registry,HM Land Registry,10/04/2018,Travel & Subsistence General Duty,International Business Development,Redfern Travel Ltd,SME,1211665,332.90,Travel & Subsistence,Administration
HM Land Registry,HM Land Registry,10/04/2018,Travel & Subsistence General Duty,Communications Team,Redfern Travel Ltd,SME,1211665,615.82,Travel & Subsistence,Administration
HM Land Registry,HM Land Registry,10/04/2018,Travel & Subsistence General Duty,Operations Assurance and Risk,Redfern Travel Ltd,SME,1211665,-334.30,Travel & Subsistence,Administration
HM Land Registry,HM Land Registry,10/04/2018,Travel & Subsistence General Duty,Operation Focus,Redfern Travel Ltd,SME,1211665,623.42,Travel & Subsistence,Administration
HM Land Registry,HM Land Registry,10/04/2018,Travel & Subsistence General Duty,Customer Services,Redfern Travel Ltd,SME,1211665,806.20,Travel & Subsistence,Administration
HM Land Registry,HM Land Registry,10/04/2018,Travel & Subsistence Overseas Travel,International Relations,Redfern Travel Ltd,SME,1211665,618.00,Travel & Subsistence,Administration
HM Land Registry,HM Land Registry,10/04/2018,Travel & Subsistence General Duty,LR Board & Board Chair,Redfern Travel Ltd,SME,1211665,73.59,Travel & Subsistence,Administration
HM Land Registry,HM Land Registry,10/04/2018,Travel & Subsistence General Duty,Service Management - Application Processing,Redfern Travel Ltd,SME,1211665,436.00,Travel & Subsistence,Administration
HM Land Registry,HM Land Registry,23/04/2018,Travel & Subsistence General Duty,Birkenhead Office,Redfern Travel Ltd,SME,1212826,738.60,Travel & Subsistence,Administration
HM Land Registry,HM Land Registry,23/04/2018,Travel & Subsistence General Duty,Business Development,Redfern Travel Ltd,SME,1212826,"2,313.09",Travel & Subsistence,Administration
HM Land Registry,HM Land Registry,23/04/2018,Travel & Subsistence General Duty,Central Facilities Management Team,Redfern Travel Ltd,SME,1212826,"2,252.50",Travel & Subsistence,Administration
HM Land Registry,HM Land Registry,23/04/2018,Travel & Subsistence General Duty,Central Operations Group,Redfern Travel Ltd,SME,1212826,"1,748.45",Travel & Subsistence,Administration
HM Land Registry,HM Land Registry,23/04/2018,Travel & Subsistence General Duty,Chief Executives Office,Redfern Travel Ltd,SME,1212826,138.80,Travel & Subsistence,Administration
HM Land Registry,HM Land Registry,23/04/2018,Travel & Subsistence Overseas Travel,Chief Executives Office,Redfern Travel Ltd,SME,1212826,0.60,Travel & Subsistence,Administration
HM Land Registry,HM Land Registry,23/04/2018,Travel & Subsistence General Duty,Commercial & Customer Strategy & Performance,Redfern Travel Ltd,SME,1212826,285.12,Travel & Subsistence,Administration
HM Land Registry,HM Land Registry,23/04/2018,Travel & Subsistence General Duty,Commercial Director,Redfern Travel Ltd,SME,1212826,210.60,Travel & Subsistence,Administration
HM Land Registry,HM Land Registry,23/04/2018,Travel & Subsistence General Duty,Corp Procurement,Redfern Travel Ltd,SME,1212826,-278.80,Travel & Subsistence,Administration
HM Land Registry,HM Land Registry,23/04/2018,Travel & Subsistence General Duty,Corporate Legal Services,Redfern Travel Ltd,SME,1212826,"1,250.30",Travel & Subsistence,Administration
HM Land Registry,HM Land Registry,23/04/2018,Travel & Subsistence General Duty,Coventry Office,Redfern Travel Ltd,SME,1212826,281.30,Travel & Subsistence,Administration
HM Land Registry,HM Land Registry,23/04/2018,Travel & Subsistence General Duty,Croydon Office,Redfern Travel Ltd,SME,1212826,845.00,Travel & Subsistence,Administration
HM Land Registry,HM Land Registry,23/04/2018,Travel & Subsistence General Duty,Data Group,Redfern Travel Ltd,SME,1212826,"1,382.06",Travel & Subsistence,Administration
HM Land Registry,HM Land Registry,23/04/2018,Travel & Subsistence General Duty,Dir: (Statutory) Digital Services,Redfern Travel Ltd,SME,1212826,"3,224.41",Travel & Subsistence,Administration
HM Land Registry,HM Land Registry,23/04/2018,Travel & Subsistence General Duty,Dir: Operations,Redfern Travel Ltd,SME,1212826,580.40,Travel & Subsistence,Administration
HM Land Registry,HM Land Registry,23/04/2018,Travel & Subsistence General Duty,Director of Information Systems,Redfern Travel Ltd,SME,1212826,"2,985.29",Travel & Subsistence,Administration
HM Land Registry,HM Land Registry,23/04/2018,Travel & Subsistence General Duty,Director of Legal Services,Redfern Travel Ltd,SME,1212826,532.70,Travel & Subsistence,Administration
HM Land Registry,HM Land Registry,23/04/2018,Travel & Subsistence General Duty,Director of Operations,Redfern Travel Ltd,SME,1212826,148.60,Travel & Subsistence,Administration
HM Land Registry,HM Land Registry,23/04/2018,Travel & Subsistence General Duty,Durham Office,Redfern Travel Ltd,SME,1212826,"2,304.12",Travel & Subsistence,Administration
HM Land Registry,HM Land Registry,23/04/2018,Travel & Subsistence General Duty,Finance Group,Redfern Travel Ltd,SME,1212826,257.90,Travel & Subsistence,Administration
HM Land Registry,HM Land Registry,23/04/2018,Travel & Subsistence General Duty,Fylde Office,Redfern Travel Ltd,SME,1212826,199.20,Travel & Subsistence,Administration
HM Land Registry,HM Land Registry,23/04/2018,Travel & Subsistence General Duty,Gloucester Office,Redfern Travel Ltd,SME,1212826,0.60,Travel & Subsistence,Administration
HM Land Registry,HM Land Registry,23/04/2018,Travel & Subsistence General Duty,HR Group,Redfern Travel Ltd,SME,1212826,"4,060.35",Travel & Subsistence,Administration
HM Land Registry,HM Land Registry,23/04/2018,Travel & Subsistence General Duty,Hull Office,Redfern Travel Ltd,SME,1212826,507.40,Travel & Subsistence,Administration
HM Land Registry,HM Land Registry,23/04/2018,Travel & Subsistence General Duty,Leicester Office,Redfern Travel Ltd,SME,1212826,373.10,Travel & Subsistence,Administration
HM Land Registry,HM Land Registry,23/04/2018,Travel & Subsistence General Duty,Local Land Charges,Redfern Travel Ltd,SME,1212826,"1,200.90",Travel & Subsistence,Administration
HM Land Registry,HM Land Registry,23/04/2018,Travel & Subsistence General Duty,Local Lawyer Group,Redfern Travel Ltd,SME,1212826,"1,044.05",Travel & Subsistence,Administration
HM Land Registry,HM Land Registry,23/04/2018,Travel & Subsistence General Duty,Marketing Services Team,Redfern Travel Ltd,SME,1212826,43.50,Travel & Subsistence,Administration
HM Land Registry,HM Land Registry,23/04/2018,Travel & Subsistence General Duty,Nottingham Office,Redfern Travel Ltd,SME,1212826,185.00,Travel & Subsistence,Administration
HM Land Registry,HM Land Registry,23/04/2018,Travel & Subsistence General Duty,Plymouth Office,Redfern Travel Ltd,SME,1212826,83.20,Travel & Subsistence,Administration
HM Land Registry,HM Land Registry,23/04/2018,Travel & Subsistence General Duty,Product Development & Management,Redfern Travel Ltd,SME,1212826,467.70,Travel & Subsistence,Administration
HM Land Registry,HM Land Registry,23/04/2018,Travel & Subsistence General Duty,Program: Local Land Charges,Redfern Travel Ltd,SME,1212826,"1,168.34",Travel & Subsistence,Administration
HM Land Registry,HM Land Registry,23/04/2018,Travel & Subsistence General Duty,Projects and Programme Centre,Redfern Travel Ltd,SME,1212826,-28.60,Travel & Subsistence,Administration
HM Land Registry,HM Land Registry,23/04/2018,Travel & Subsistence General Duty,Property Asset Management Group,Redfern Travel Ltd,SME,1212826,570.10,Travel & Subsistence,Administration
HM Land Registry,HM Land Registry,23/04/2018,Travel & Subsistence General Duty,Research & Data Mining,Redfern Travel Ltd,SME,1212826,79.30,Travel & Subsistence,Administration
HM Land Registry,HM Land Registry,23/04/2018,Travel & Subsistence General Duty,Telford Office,Redfern Travel Ltd,SME,1212826,463.40,Travel & Subsistence,Administration
HM Land Registry,HM Land Registry,23/04/2018,Travel & Subsistence General Duty,Wales Office,Redfern Travel Ltd,SME,1212826,269.90,Travel & Subsistence,Administration
HM Land Registry,HM Land Registry,23/04/2018,Travel & Subsistence General Duty,Weymouth Office,Redfern Travel Ltd,SME,1212826,172.00,Travel & Subsistence,Administration
HM Land Registry,HM Land Registry,23/04/2018,Travel & Subsistence General Duty,Dir: Finance,Redfern Travel Ltd,SME,1212826,"2,806.88",Travel & Subsistence,Administration
HM Land Registry,HM Land Registry,23/04/2018,Travel & Subsistence General Duty,Internal Audit,Redfern Travel Ltd,SME,1212826,220.60,Travel & Subsistence,Administration
HM Land Registry,HM Land Registry,23/04/2018,Travel & Subsistence General Duty,International Business Development,Redfern Travel Ltd,SME,1212826,665.00,Travel & Subsistence,Administration
HM Land Registry,HM Land Registry,23/04/2018,Travel & Subsistence General Duty,Communications Team,Redfern Travel Ltd,SME,1212826,"1,913.22",Travel & Subsistence,Administration
HM Land Registry,HM Land Registry,23/04/2018,Travel & Subsistence General Duty,Diversity,Redfern Travel Ltd,SME,1212826,"1,260.12",Travel & Subsistence,Administration
HM Land Registry,HM Land Registry,23/04/2018,Travel & Subsistence General Duty,Operations Assurance and Risk,Redfern Travel Ltd,SME,1212826,119.55,Travel & Subsistence,Administration
HM Land Registry,HM Land Registry,23/04/2018,Travel & Subsistence General Duty,Operation Focus,Redfern Travel Ltd,SME,1212826,489.36,Travel & Subsistence,Administration
HM Land Registry,HM Land Registry,23/04/2018,Travel & Subsistence General Duty,Customer Services,Redfern Travel Ltd,SME,1212826,"1,242.05",Travel & Subsistence,Administration
HM Land Registry,HM Land Registry,23/04/2018,Travel & Subsistence General Duty,Service Management - Application Processing,Redfern Travel Ltd,SME,1212826,490.78,Travel & Subsistence,Administration
HM Land Registry,HM Land Registry,23/04/2018,Travel & Subsistence General Duty,Learning and Development,Redfern Travel Ltd,SME,1212826,289.00,Travel & Subsistence,Administration
HM Land Registry,HM Land Registry,23/04/2018,Travel & Subsistence General Duty,Register Development,Redfern Travel Ltd,SME,1212826,-97.20,Travel & Subsistence,Administration
HM Land Registry,HM Land Registry,23/04/2018,Travel & Subsistence General Duty,Local Lawyer Support Group,Redfern Travel Ltd,SME,1212826,-58.30,Travel & Subsistence,Administration
HM Land Registry,HM Land Registry,23/04/2018,Travel & Subsistence General Duty,Head of Commercial Services,Redfern Travel Ltd,SME,1212826,119.30,Travel & Subsistence,Administration
HM Land Registry,HM Land Registry,18/04/2018,Letter Post,Birkenhead Office,Royal Mail,Large,1212439,"2,116.28",Letter Post,Administration
HM Land Registry,HM Land Registry,18/04/2018,Letter Post,Coventry Office,Royal Mail,Large,1212439,"1,444.07",Letter Post,Administration
HM Land Registry,HM Land Registry,18/04/2018,Letter Post,Croydon Office,Royal Mail,Large,1212439,"4,416.58",Letter Post,Administration
HM Land Registry,HM Land Registry,18/04/2018,Letter Post,Durham Office,Royal Mail,Large,1212439,"5,966.58",Letter Post,Administration
HM Land Registry,HM Land Registry,18/04/2018,Letter Post,Fylde Office,Royal Mail,Large,1212439,"2,896.52",Letter Post,Administration
HM Land Registry,HM Land Registry,18/04/2018,Letter Post,Gloucester Office,Royal Mail,Large,1212439,"2,379.85",Letter Post,Administration
HM Land Registry,HM Land Registry,18/04/2018,Letter Post,Hull Office,Royal Mail,Large,1212439,"5,231.38",Letter Post,Administration
HM Land Registry,HM Land Registry,18/04/2018,Letter Post,IS Service Delivery,Royal Mail,Large,1212439,"23,965.07",Letter Post,Administration
HM Land Registry,HM Land Registry,18/04/2018,Letter Post,Leicester Office,Royal Mail,Large,1212439,"1,457.84",Letter Post,Administration
HM Land Registry,HM Land Registry,18/04/2018,Letter Post,Nottingham Office,Royal Mail,Large,1212439,"2,461.05",Letter Post,Administration
HM Land Registry,HM Land Registry,18/04/2018,Letter Post,Peterborough Office,Royal Mail,Large,1212439,"2,183.38",Letter Post,Administration
HM Land Registry,HM Land Registry,18/04/2018,Letter Post,Plymouth Office,Royal Mail,Large,1212439,"3,677.30",Letter Post,Administration
HM Land Registry,HM Land Registry,18/04/2018,Letter Post,Telford Office,Royal Mail,Large,1212439,929.82,Letter Post,Administration
HM Land Registry,HM Land Registry,18/04/2018,Letter Post,Wales Office,Royal Mail,Large,1212439,"18,755.01",Letter Post,Administration
HM Land Registry,HM Land Registry,18/04/2018,Letter Post,Weymouth Office,Royal Mail,Large,1212439,"1,792.65",Letter Post,Administration
HM Land Registry,HM Land Registry,06/04/2018,Computer Equipment Maintenance,IS Service Delivery,Software Box Ltd,SME,1210899,"93,323.62",Computer Equipment Maintenance,Administration
HM Land Registry,HM Land Registry,26/04/2018,Rates Payable,Director of Information Systems,South Hams District Council,Large,1208573,"7,704.00",Rates Payable,Administration
HM Land Registry,HM Land Registry,26/04/2018,Rates Payable,Director of Information Systems,South Hams District Council,Large,1208571,"4,634.00",Rates Payable,Administration
HM Land Registry,HM Land Registry,05/04/2018,Computer Equipment Non HP Licences,IS Service Delivery,Specialist Computer Centres Plc - SCC,Large,1211111,"125,999.64",Computer Equipment Non HP Licences,Administration
HM Land Registry,HM Land Registry,05/04/2018,Computer Equipment Non HP Licences,IS Service Delivery,Specialist Computer Centres Plc - SCC,Large,1211135,"1,064,946.07",Computer Equipment Non HP Licences,Administration
HM Land Registry,HM Land Registry,05/04/2018,Computer Equipment Non HP Licences,IS Service Delivery,Specialist Computer Centres Plc - SCC,Large,1211112,"201,022.66",Computer Equipment Non HP Licences,Administration
HM Land Registry,HM Land Registry,06/04/2018,Computer Equipment Maintenance,IS Service Delivery,Specialist Computer Centres Plc - SCC,Large,1211278,"57,425.92",Computer Equipment Maintenance,Administration
HM Land Registry,HM Land Registry,06/04/2018,Software as a Service (Cloud),IS Service Delivery,Specialist Computer Centres Plc - SCC,Large,1211277,"88,967.59",Cloud Computing Services,Administration
HM Land Registry,HM Land Registry,06/04/2018,Fixed Asset Interface Account,Balance Sheet,Specialist Computer Centres Plc - SCC,Large,1211276,"16,466.40",Fixed Assets,Administration
HM Land Registry,HM Land Registry,06/04/2018,Computer Equipment Maintenance,IS Service Delivery,Specialist Computer Centres Plc - SCC,Large,1211276,"7,393.06",Computer Equipment Maintenance,Administration
HM Land Registry,HM Land Registry,19/04/2018,Fixed Asset Interface Account,Balance Sheet,Specialist Computer Centres Plc - SCC,Large,1210152,"375,600.00",Fixed Assets,Administration
HM Land Registry,HM Land Registry,17/04/2018,Major Property Maintenance Projects,Central Facilities Management Team,T J Hall Ltd,SME,1212179,"53,770.73",Major Property Maintenance Projects,Administration
HM Land Registry,HM Land Registry,26/04/2018,Rates Payable,Telford Office,Telford & Wrekin Council,Large,1208572,"25,463.00",Rates Payable,Administration
HM Land Registry,HM Land Registry,26/04/2018,Rates Payable,Gloucester Computer Centre,Tewkesbury Borough Council,Large,1208017,"11,419.00",Rates Payable,Administration
HM Land Registry,HM Land Registry,10/04/2018,RFS Outsourced Services,Central RFS,TNT (UK) Ltd,Large,1211662,"192,565.98",Regional File Store Outsourced Services,Administration
HM Land Registry,HM Land Registry,11/04/2018,RFS Outsourced Services,Central RFS,TNT (UK) Ltd,Large,1211661,"92,707.92",Regional File Store Outsourced Services,Administration
HM Land Registry,HM Land Registry,06/04/2018,Computer Equipment Maintenance,IS Service Delivery,Vanguard Integrity Professionals Ltd,Large,1210906,"27,000.00",Computer Equipment Maintenance,Administration
HM Land Registry,HM Land Registry,05/04/2018,Rates Payable,Weymouth Office,West Dorset District Council,Large,1210787,"5,371.00",Rates Payable,Administration
HM Land Registry,HM Land Registry,05/04/2018,Rates Payable,Weymouth Office,West Dorset District Council,Large,1210790,"4,804.50",Rates Payable,Administration
HM Land Registry,HM Land Registry,04/04/2018,Rates Payable,Birkenhead Office,Wirral Council,Large,1209134,"27,850.00",Rates Payable,Administration
HM Land Registry,HM Land Registry,06/04/2018,Maps & Plans Data Migration,Forward Scanning,Xerox (UK) Ltd,Large,1211283,"112,009.87",Maps & Plans Data Migration,Administration
